fUSD/lending_fUSD_20250612
["ID","MTS","AMOUNT","RATE_DAILY","PERIOD"]
[365500513,1749712238002,-884.36224711,0.000198,2]
[365500514,1749712238110,-9763.48951388,0.000198,2]
[365500515,1749712238120,-1935.5309,0.000198,2]
[365500516,1749712238130,-6240.06558712,0.0001981,2]
[365500517,1749712238139,-2611.39717675,0.00019811,2]
[365500518,1749712238151,-151.71384899,0.00019821,2]
[365500519,1749712238160,-451.96957002,0.00019821,2]
[365500520,1749712238170,-2611.39717675,0.00019833,2]
[365500521,1749712238179,-150.0,0.00019845,2]
[365500522,1749712238188,-2611.39717675,0.00019856,2]
[365500523,1749712238197,-975.05955416,0.00019877,2]
[365500524,1749712238206,-2611.39717675,0.00019878,2]
[365500525,1749712238216,-502.8,0.0001988,2]
[365500526,1749712238226,-40345.91528263,0.0001988,2]
[365500691,1749712240014,-913.303,0.0001988,2]
[365500693,1749712240025,-10625.43501985,0.0001988,2]
[365500696,1749712240036,-50658.05184292,0.0001988,2]
[365500698,1749712240047,-405.89734009,0.0001988,2]
[365500703,1749712240085,-97051.39751451,0.0001988,2]
[365500705,1749712240095,-904.29651758,0.00019886,2]
[365500707,1749712240103,-164.73544592,0.00019886,2]
[365500709,1749712240112,-904.29651757,0.00019888,2]
[365500711,1749712240121,-904.29651757,0.00019889,2]
[365500713,1749712240130,-904.29651757,0.00019891,2]
[365500715,1749712240139,-904.29651757,0.00019892,2]
[365500717,1749712240148,-164.73544592,0.00019893,2]
[365500718,1749712240161,-904.29651757,0.00019894,2]
[365500720,1749712240171,-904.29651757,0.00019895,2]
[365500723,1749712240180,-298.77669866,0.00019896,2]
[365500724,1749712240189,-904.29651757,0.00019897,2]
[365500726,1749712240199,-904.29651757,0.00019898,2]
[365500728,1749712240207,-1004.40031711,0.000199,2]
[365500730,1749712240217,-904.29651757,0.000199,2]
[365500732,1749712240227,-219.77783185,0.000199,2]
[365500734,1749712240236,-164.73544592,0.000199,2]
[365500736,1749712240245,-2611.39717675,0.000199,2]
[365500738,1749712240254,-150.0,0.00019903,2]
[365500740,1749712240263,-1000.0,0.00019936,2]
[365500742,1749712240272,-1000.0,0.00019937,2]
[365500744,1749712240281,-1000.0,0.00019941,2]
[365500746,1749712240290,-1000.0,0.00019945,2]
[365500748,1749712240299,-1000.0,0.00019947,2]
[365500750,1749712240308,-1000.0,0.00019956,2]
[365500752,1749712240316,-150.0,0.00019957,2]
[365500754,1749712240325,-1000.0,0.00019958,2]
[365500756,1749712240334,-710.14337307,0.00019964,2]
[365500758,1749712240343,-451.96957002,0.00019965,2]
[365500760,1749712240353,-504.5961517,0.00019973,2]
[365500762,1749712240362,-500.0,0.00019973,2]
[365500764,1749712240371,-500.0,0.00019973,2]
[365500766,1749712240380,-517.62605896,0.00019973,2]
[365500768,1749712240389,-500.0,0.00019973,2]
[365500770,1749712240399,-500.0,0.00019973,2]
[365500772,1749712240408,-151.43700915,0.00019979,2]
[365500774,1749712240417,-2350.7855517,0.00019986,2]
[365500776,1749712240426,-1957.1689204,0.00019986,2]
[365500778,1749712240435,-1563.5522892,0.00019986,2]
[365500780,1749712240444,-1169.9356579,0.00019986,2]
[365500782,1749712240453,-776.3190267,0.00019986,2]
[365500784,1749712240464,-77838.7074816,0.00019986,2]
[365500785,1749712240474,-64805.3579287,0.00019986,2]
[365500787,1749712240483,-51772.0083759,0.00019986,2]
[365500789,1749712240492,-38738.658823,0.00019986,2]
[365500791,1749712240502,-25705.3092701,0.00019986,2]
[365500793,1749712240511,-1699.1206782,0.00019986,2]
[365500795,1749712240520,-1415.3056887,0.00019986,2]
[365500797,1749712240529,-1131.4906992,0.00019986,2]
[365500799,1749712240538,-847.6757097,0.00019986,2]
[365500801,1749712240548,-563.8607202,0.00019986,2]
[365500803,1749712240557,-3302.0281901,0.00019986,2]
[365500805,1749712240566,-2751.6571388,0.00019986,2]
[365500807,1749712240575,-2201.2860875,0.00019986,2]
[365500809,1749712240585,-1650.9150362,0.00019986,2]
[365500811,1749712240594,-1100.5439849,0.00019986,2]
[365500813,1749712240603,-8000.0,0.0001999,2]
[365500815,1749712240612,-2744.4021829,0.00019996,2]
[365500817,1749712240621,-90872.0570345,0.00019996,2]
[365500819,1749712240630,-1982.9356676,0.00019996,2]
[365500821,1749712240639,-3852.3992414,0.00019996,2]
[365500823,1749712240649,-37193.53742003,0.00019997,2]
[365500825,1749712240658,-666.0,0.00019999,2]
[365500827,1749712240667,-666.0,0.00019999,2]
[365500828,1749712240676,-300.0,0.00019999,2]
[365500831,1749712240686,-300.0,0.00019999,2]
[365500833,1749712240696,-300.0,0.00019999,2]
[365500834,1749712240705,-500.0,0.00019999,2]
[365500837,1749712240716,-151.0,0.00019999,7]
[365500838,1749712240727,-500.0,0.00019999,2]
[365500840,1749712240738,-150.0,0.00019999,2]
[365500843,1749712240747,-500.0,0.00019999,2]
[365500844,1749712240756,-500.0,0.00019999,2]
[365500846,1749712240767,-500.0,0.00019999,2]
[365500848,1749712240776,-150.78118364,0.00019999,2]
[365500850,1749712240785,-500.0,0.00019999,2]
[365500852,1749712240795,-251.779506,0.00019999,2]
[365500854,1749712240805,-500.0,0.00019999,2]
[365500856,1749712240814,-150.0,0.00019999,2]
[365500858,1749712240823,-500.0,0.00019999,2]
[365500860,1749712240832,-1095.0,0.00019999,2]
[365500862,1749712240841,-150.0,0.00019999,2]
[365500864,1749712240851,-211.92372185,0.00019999,2]
[365500866,1749712240860,-254.25548793,0.00019999,2]
[365500868,1749712240870,-150.0,0.00019999,2]
[365500870,1749712240879,-179.99996996,0.00019999,2]
[365500872,1749712240888,-176.06,0.00019999,2]
[365500874,1749712240898,-165.9850974,0.00019999,2]
[365500876,1749712240907,-500.0,0.00019999,2]
[365500878,1749712240916,-150.0,0.00019999,2]
[365500880,1749712240926,-331.63974625,0.00019999,2]
[365500882,1749712240935,-2102.0809008,0.00019999,3]
[365500884,1749712240944,-225319.15611001,0.0002,3]
[365500899,1749712241072,-15736.90094001,0.0002,3]
[365500901,1749712241083,-1179.64476278,0.0002,3]
[365500903,1749712241095,-10342.85860827,0.0002,3]
[365500905,1749712241106,-688.04722663,0.0002,3]
[365500908,1749712241117,-1942.9070334,0.0002,3]
[365500911,1749712241144,-1858.07532784,0.0002,3]
[365500914,1749712241155,-1096.2,0.0002,3]
[365501056,1749712243175,-163.37,0.00019178,2]
[365501057,1749712243185,-836.63,0.00019664,2]
[365501058,1749712243196,-50.822,0.00019664,2]
[365501059,1749712243206,-17212.79412772,0.0002,3]
[365501060,1749712243219,-479.55236195,0.0002,3]
[365501061,1749712243230,-1641.0,0.0002,3]
[365501062,1749712243241,-2810.75769806,0.0002,3]
[365501063,1749712243251,-3586.7102229,0.0002,3]
[365501064,1749712243278,-474.38004992,0.0002,3]
[365501065,1749712243289,-3451.09141369,0.0002,3]
[365501066,1749712243301,-2243.60259393,0.0002,3]
[365501067,1749712243349,-584993.21451922,0.0002,3]
[365501068,1749712243358,-102207.49981761,0.0002,2]
[365501069,1749712243368,-560.71560812,0.0002,2]
[365501070,1749712243379,-5407.19249071,0.0002,2]
[365501071,1749712243426,-2767.40000004,0.0002,2]
[365501073,1749712243437,-1007.0,0.0002,2]
[365501081,1749712245992,-107880.0,0.0002,2]
[365501082,1749712246049,-1206314.30033928,0.0002,2]
[365501083,1749712246059,-3950.0,0.0002,2]
[365501084,1749712246068,-1257.99390588,0.0002,2]
[365501085,1749712246078,-2835.54663393,0.0002,7]
[365501086,1749712246087,-11748.97619303,0.0002,2]
[365501087,1749712246097,-511.24305735,0.0002,7]
[365501088,1749712246106,-1015.04507315,0.0002,2]
[365501089,1749712246116,-2780.99793413,0.0002,2]
[365501090,1749712246125,-42438.8816391,0.0002,2]
[365501091,1749712246134,-3014.11112877,0.0002,2]
[365501092,1749712246144,-74307.56,0.0002,2]
[365501093,1749712246154,-775.14473266,0.0002,7]
[365501094,1749712246163,-7500.0,0.0002,2]
[365501095,1749712246172,-16668.02425697,0.0002,2]
[365501112,1749712387042,605.50627573,0.00016165,2]
[365501113,1749712399790,245.11,0.00013699,2]
[365501119,1749712515068,10000.0,0.00018,2]
[365501121,1749712524364,3870.84382792,0.00018,2]
[365501122,1749712524388,6129.15617208,0.00018,2]
[365501123,1749712533653,8955.23816125,0.00018,2]
[365501124,1749712533678,1044.76183875,0.00018,2]
[365501127,1749712547392,10000.0,0.00018,2]
[365501128,1749712569089,4039.63249458,0.00018,2]
[365501129,1749712569113,1804.36750542,0.00018,2]
[365501130,1749712577815,309.16857724,0.000245,120]
[365501132,1749712644598,776.31,0.00016795,2]
[365501134,1749712758644,3758.03,0.0002,30]
[365501135,1749712812837,-177.3,0.00018011,2]
[365501138,1749712908426,-23.7,0.00018011,2]
[365501141,1749713029496,227.55,0.00024658,120]
[365501148,1749713112805,-164.64741826,0.00018011,2]
[365501149,1749713117293,-35.35258174,0.00018011,2]
[365501155,1749713172458,201.0,0.00017905,2]
[365501159,1749713208497,-311.09829226,0.00018,3]
[365501160,1749713211266,-18.83701304,0.00018,3]
[365501161,1749713217146,-300.0,0.00018218,2]
[365501162,1749713217167,-29.9353053,0.00018219,2]
[365501163,1749713225237,-300.0,0.00018218,2]
[365501164,1749713225258,-300.0,0.00018218,2]
[365501165,1749713225278,-26.56625449,0.00018219,2]
[365501171,1749713318451,12302.71682791,0.000151,2]
[365501172,1749713318478,11276.52831638,0.000151,2]
[365501175,1749713322316,3807.86601695,0.00013368,2]
[365501176,1749713322341,3813.45761049,0.00013368,2]
[365501189,1749713363806,-289.81557007,0.00018119,2]
[365501190,1749713367561,-37.12912213,0.00018119,2]
[365501195,1749713425721,295.18,0.00013699,2]
[365501202,1749713431992,-150.0,0.00018196,2]
[365501203,1749713432002,-212.561,0.00018218,2]
[365501204,1749713432013,-928.663573,0.00018218,2]
[365501205,1749713432194,-58.775427,0.00018218,2]
[365501206,1749713432203,-300.0,0.00018218,2]
[365501207,1749713432213,-28532.29190616,0.00018219,2]
[365501208,1749713432222,-174.63835223,0.00018296,2]
[365501209,1749713432231,-250.0,0.00018396,2]
[365501210,1749713432241,-268.83,0.00018466,2]
[365501211,1749713432250,-160.66,0.00018574,2]
[365501212,1749713432259,-500.0,0.00018603,2]
[365501213,1749713432269,-251.05753186,0.00018636,2]
[365501214,1749713432279,-300.0,0.00018636,2]
[365501215,1749713432288,-200.0,0.00018666,2]
[365501216,1749713432296,-312.03,0.00018673,2]
[365501217,1749713432305,-150.0,0.00018673,7]
[365501218,1749713432315,-227.0,0.00018682,2]
[365501219,1749713432324,-250.0,0.00018686,2]
[365501220,1749713432333,-163.37,0.000187,2]
[365501221,1749713432342,-454.96,0.000187,2]
[365501222,1749713432351,-1013.5,0.00018712,2]
[365501223,1749713432360,-1000.0,0.00018724,2]
[365501224,1749713432369,-11980.95,0.00018731,2]
[365501225,1749713432379,-170.71,0.00018774,2]
[365501226,1749713432388,-301.26,0.00018778,2]
[365501227,1749713432397,-163.37,0.00018778,2]
[365501228,1749713432406,-454.96,0.00018778,2]
[365501229,1749713432415,-398.68826324,0.0001879,2]
[365501230,1749713432424,-201.0,0.0001882,3]
[365501231,1749713432434,-454.96,0.00018878,2]
[365501232,1749713432443,-454.96,0.00018878,2]
[365501233,1749713432451,-163.37,0.00018878,2]
[365501234,1749713432460,-208.80441883,0.000189,2]
[365501235,1749713432470,-152.0,0.00018938,3]
[365501236,1749713432479,-208.80441878,0.00018963,2]
[365501237,1749713432488,-1957.856,0.00018997,2]
[365501238,1749713432497,-207.4,0.00018997,2]
[365501239,1749713432506,-500.0,0.00018997,2]
[365501240,1749713432517,-151.0,0.00018997,2]
[365501241,1749713432526,-152.39864102,0.00019014,2]
[365501242,1749713432535,-208.80441878,0.00019025,2]
[365501243,1749713432544,-461.37,0.00019041,2]
[365501244,1749713432554,-461.37,0.00019041,2]
[365501245,1749713432563,-461.37,0.00019041,2]
[365501246,1749713432572,-461.37,0.00019041,2]
[365501248,1749713432581,-461.37,0.00019041,2]
[365501250,1749713432590,-461.37,0.00019041,2]
[365501252,1749713432599,-461.37,0.00019041,2]
[365501254,1749713432608,-461.37,0.00019041,2]
[365501256,1749713432618,-461.37,0.00019041,2]
[365501258,1749713432627,-201.38304379,0.00019052,2]
[365501260,1749713432636,-776.31,0.00019059,2]
[365501262,1749713432645,-227.0,0.00019071,2]
[365501264,1749713432654,-208.80441878,0.00019088,2]
[365501266,1749713432663,-167.62,0.00019118,2]
[365501268,1749713432672,-509.16,0.00019118,2]
[365501270,1749713432682,-503.81,0.00019118,2]
[365501272,1749713432691,-509.77,0.00019118,2]
[365501274,1749713432701,-496.77,0.0001915,2]
[365501275,1749713432709,-497.5,0.0001915,2]
[365501277,1749713432719,-208.80441878,0.0001915,2]
[365501280,1749713432728,-227.0,0.00019173,2]
[365501281,1749713432738,-154.395357,0.00019178,2]
[365501283,1749713432747,-154.395357,0.00019178,2]
[365501285,1749713432756,-154.395357,0.00019178,2]
[365501287,1749713432767,-154.395357,0.00019178,2]
[365501289,1749713432776,-154.395357,0.00019178,2]
[365501291,1749713432786,-154.395357,0.00019178,2]
[365501293,1749713432795,-152.39864102,0.00019178,2]
[365501295,1749713432804,-150.0,0.00019178,2]
[365501297,1749713432813,-163.37,0.00019178,2]
[365501299,1749713432823,-150.55,0.00019178,2]
[365501301,1749713432832,-454.96,0.00019178,2]
[365501303,1749713432841,-300.0,0.00019178,2]
[365501305,1749713432850,-170.73,0.00019178,2]
[365501307,1749713432859,-150.0,0.00019178,2]
[365501309,1749713432868,-150.5,0.00019178,2]
[365501311,1749713432877,-354.6,0.00019178,2]
[365501313,1749713432886,-163.37,0.00019178,2]
[365501315,1749713432895,-1935.89,0.00019178,2]
[365501317,1749713432905,-163.37,0.00019178,2]
[365501319,1749713432913,-454.96,0.00019178,2]
[365501321,1749713432922,-354.6,0.00019178,2]
[365501323,1749713432931,-170.73,0.00019178,2]
[365501325,1749713432941,-164.85,0.00019178,2]
[365501327,1749713432950,-170.73,0.00019178,2]
[365501329,1749713432959,-354.6,0.00019178,2]
[365501331,1749713432968,-454.96,0.00019178,2]
[365501333,1749713432977,-354.6,0.00019178,2]
[365501335,1749713432986,-354.6,0.00019178,2]
[365501336,1749713432995,-354.6,0.00019178,2]
[365501338,1749713433004,-354.6,0.00019178,2]
[365501340,1749713433015,-492.37,0.00019183,2]
[365501342,1749713433024,-493.03,0.00019183,2]
[365501344,1749713433035,-507.8,0.00019183,2]
[365501346,1749713433044,-208.80441878,0.00019213,2]
[365501348,1749713433054,-490.87,0.00019237,2]
[365501350,1749713433063,-499.75,0.00019237,2]
[365501352,1749713433072,-208.80441878,0.00019275,2]
[365501354,1749713433081,-506.43,0.00019322,2]
[365501356,1749713433091,-498.63,0.00019322,2]
[365501358,1749713433101,-494.6,0.00019322,2]
[365501359,1749713433113,-504.65,0.00019322,2]
[365501361,1749713433122,-496.66,0.00019322,2]
[365501363,1749713433132,-208.80441878,0.00019338,2]
[365501365,1749713433142,-154.395357,0.00019342,2]
[365501367,1749713433152,-154.395357,0.00019342,2]
[365501369,1749713433161,-154.395357,0.00019342,2]
[365501371,1749713433170,-154.395357,0.00019342,2]
[365501399,1749713433427,-154.395357,0.00019342,2]
[365501402,1749713433453,-154.395357,0.00019342,2]
[365501404,1749713433462,-154.395357,0.00019342,2]
[365501406,1749713433472,-154.395357,0.00019342,2]
[365501408,1749713433482,-152.39864102,0.00019342,2]
[365501410,1749713433492,-325.29,0.000194,2]
[365501412,1749713433501,-354.6,0.000194,2]
[365501414,1749713433511,-354.6,0.000194,2]
[365501416,1749713433521,-354.6,0.000194,2]
[365501418,1749713433531,-326.54,0.000194,2]
[365501420,1749713433540,-354.04,0.000194,2]
[365501421,1749713433549,-208.80441878,0.000194,2]
[365501423,1749713433559,-1003.0,0.00019433,2]
[365501425,1749713433568,-504.0,0.00019452,2]
[365501427,1749713433577,-227.0,0.00019454,2]
[365501429,1749713433586,-208.80441878,0.00019463,2]
[365501431,1749713433596,-453.52,0.000195,2]
[365501433,1749713433605,-163.37,0.000195,2]
[365501435,1749713433615,-668.85,0.000195,2]
[365501437,1749713433625,-163.37,0.000195,2]
[365501439,1749713433634,-154.395357,0.00019506,2]
[365501441,1749713433644,-154.395357,0.00019506,2]
[365501443,1749713433654,-154.395357,0.00019506,2]
[365501445,1749713433664,-154.395357,0.00019506,2]
[365501447,1749713433674,-154.395357,0.00019506,2]
[365501449,1749713433683,-152.39864102,0.00019507,2]
[365501451,1749713433693,-208.80441878,0.00019525,2]
[365501453,1749713433702,-227.0,0.00019534,2]
[365501455,1749713433711,-227.0,0.00019562,2]
[365501457,1749713433721,-208.80441878,0.00019588,2]
[365501459,1749713433730,-502.54,0.00019592,2]
[365501461,1749713433741,-502.67,0.00019592,2]
[365501463,1749713433750,-493.88,0.00019592,2]
[365501465,1749713433760,-354.55,0.00019596,2]
[365501467,1749713433770,-354.6,0.00019596,2]
[365501469,1749713433780,-170.71,0.00019596,2]
[365501471,1749713433790,-163.35,0.00019596,2]
[365501472,1749713433799,-170.71,0.00019596,2]
[365501474,1749713433809,-163.35,0.00019596,2]
[365501476,1749713433818,-163.35,0.00019596,2]
[365501478,1749713433828,-170.71,0.00019596,2]
[365501479,1749713433838,-358.83,0.00019596,2]
[365501480,1749713433848,-163.37,0.00019596,2]
[365501481,1749713433858,-454.89,0.00019596,2]
[365501482,1749713433868,-170.73,0.00019596,2]
[365501483,1749713433877,-454.89,0.00019596,2]
[365501484,1749713433887,-454.89,0.00019596,2]
[365501485,1749713433896,-1163.78,0.00019596,2]
[365501486,1749713433906,-708.07,0.000196,2]
[365501487,1749713433915,-354.55,0.00019605,2]
[365501488,1749713433925,-354.55,0.00019605,2]
[365501489,1749713433935,-354.55,0.00019605,2]
[365501490,1749713433944,-354.6,0.00019605,2]
[365501491,1749713433955,-1163.78,0.00019605,2]
[365501492,1749713433964,-2327.57,0.00019605,2]
[365501493,1749713433974,-208.80441878,0.0001965,2]
[365501494,1749713433983,-154.395357,0.00019671,2]
[365501495,1749713433993,-154.395357,0.00019671,2]
[365501496,1749713434002,-154.395357,0.00019671,2]
[365501497,1749713434012,-152.39864102,0.00019671,2]
[365501499,1749713434023,-918.24,0.000197,2]
[365501501,1749713434032,-354.6,0.000197,2]
[365501503,1749713434042,-354.6,0.000197,2]
[365501505,1749713434052,-1000.0,0.000197,2]
[365501507,1749713434061,-12211.29,0.000197,2]
[365501509,1749713434071,-208.80441878,0.00019713,2]
[365501511,1749713434080,-292.40411874,0.00019726,2]
[365501513,1749713434090,-1000.0,0.00019727,2]
[365501515,1749713434099,-201.0,0.00019735,4]
[365501517,1749713434110,-1815.48008251,0.00019741,2]
[365501518,1749713434120,-1000.0,0.00019747,2]
[365501520,1749713434129,-500.0,0.00019753,2]
[365501522,1749713434138,-1815.48008246,0.00019759,2]
[365501524,1749713434147,-400.77824834,0.00019775,2]
[365501526,1749713434156,-208.80441878,0.00019775,2]
[365501528,1749713434165,-1815.48008246,0.00019776,2]
[365501530,1749713434175,-49137.514,0.0001978,2]
[365501532,1749713434185,-1815.48008246,0.00019794,2]
[365501534,1749713434195,-1000.0,0.000198,2]
[365501536,1749713434205,-768.48580726,0.00019808,2]
[365501538,1749713434215,-1815.48008246,0.00019812,2]
[365501540,1749713434225,-768.48580726,0.00019816,2]
[365501542,1749713434234,-1000.0,0.00019818,2]
[365501545,1749713434244,-1000.0,0.00019821,2]
[365501546,1749713434254,-768.48580726,0.00019825,2]
[365501548,1749713434264,-1000.0,0.00019828,2]
[365501551,1749713434274,-1815.48008246,0.00019829,2]
[365501552,1749713434284,-768.48580726,0.00019833,2]
[365501554,1749713434293,-154.395357,0.00019835,2]
[365501556,1749713434302,-152.39864102,0.00019836,2]
[365501558,1749713434311,-208.80441878,0.00019838,2]
[365501560,1749713434321,-178.3677078,0.0001984,2]
[365501562,1749713434331,-500.0,0.0001984,2]
[365501564,1749713434340,-372.87546778,0.0001984,2]
[365501565,1749713434349,-500.0,0.0001984,2]
[365501567,1749713434358,-500.0,0.0001984,2]
[365501569,1749713434368,-587.26188791,0.0001984,2]
[365501571,1749713434377,-500.0,0.0001984,2]
[365501573,1749713434387,-500.0,0.0001984,2]
[365501575,1749713434397,-500.0,0.0001984,2]
[365501576,1749713434406,-150.0,0.0001984,2]
[365501577,1749713434426,-500.0,0.0001984,2]
[365501578,1749713434440,-200.0,0.0001984,2]
[365501579,1749713434449,-1275.0,0.00019841,2]
[365501580,1749713434458,-590.0,0.00019841,2]
[365501581,1749713434467,-927.0,0.00019841,2]
[365501582,1749713434478,-2001.0,0.00019841,2]
[365501583,1749713434487,-558.0,0.00019841,2]
[365501584,1749713434497,-1256.0,0.00019841,2]
[365501586,1749713434506,-1159.0,0.00019841,2]
[365501587,1749713434516,-3330.0,0.00019841,2]
[365501588,1749713434525,-945.0,0.00019841,2]
[365501589,1749713434535,-768.48580726,0.00019841,2]
[365501590,1749713434544,-1815.48008246,0.00019847,2]
[365501591,1749713434553,-768.48580726,0.0001985,2]
[365501592,1749713434563,-768.48580726,0.00019858,2]
[365501593,1749713434572,-150.0,0.00019859,2]
[365501594,1749713434582,-1815.48008246,0.00019865,2]
[365501595,1749713434591,-768.48580726,0.00019867,2]
[365501596,1749713434601,-768.48580726,0.00019875,2]
[365501597,1749713434611,-1815.48008246,0.00019882,2]
[365501598,1749713434620,-768.48580726,0.00019883,2]
[365501599,1749713434629,-5000.0,0.00019886,2]
[365501600,1749713434639,-625.423,0.00019888,2]
[365501601,1749713434648,-768.48580726,0.00019892,2]
[365501602,1749713434658,-190963.08897734,0.000199,2]
[365501603,1749713434667,-1815.48008246,0.000199,2]
[365501604,1749713434677,-768.48580726,0.000199,2]
[365501605,1749713434686,-5585.25588569,0.000199,2]
[365501606,1749713434695,-208.80441878,0.000199,2]
[365501607,1749713434713,-1000.0,0.00019929,2]
[365501608,1749713434725,-150.0,0.00019938,2]
[365501609,1749713434735,-1000.0,0.00019942,2]
[365501610,1749713434744,-1000.0,0.00019962,2]
[365501611,1749713434755,-514.30454927,0.00019963,2]
[365501612,1749713434764,-1680.0,0.00019971,2]
[365501613,1749713434775,-500.0,0.00019973,2]
[365501614,1749713434785,-500.0,0.00019973,2]
[365501615,1749713434795,-500.0,0.00019973,2]
[365501616,1749713434807,-500.0,0.00019973,2]
[365501617,1749713434816,-504.5961517,0.00019973,2]
[365501618,1749713434826,-517.62605896,0.00019973,2]
[365501619,1749713434836,-500.0,0.00019973,2]
[365501620,1749713434845,-151.43700915,0.0001998,2]
[365501621,1749713434854,-353.57386013,0.0001998,2]
[365501622,1749713434864,-1003.0,0.00019983,2]
[365501623,1749713434875,-1000.0,0.00019984,2]
[365501624,1749713434885,-21078.1811911,0.00019986,2]
[365501625,1749713434894,-394.71130254,0.00019986,2]
[365501626,1749713435377,-10778.0,0.00019986,2]
[365501627,1749713435418,-2737.28378383,0.00019986,2]
[365501629,1749713437916,-154.395357,0.00019835,2]
[365501630,1749713437926,-154.395357,0.00019835,2]
[365501631,1749713437936,-647.90935794,0.00019841,2]
[365501632,1749713437947,-833.41808518,0.00019841,2]
[365501633,1749713437971,-747.72575256,0.00019841,2]
[365501634,1749713437983,-947.36912179,0.00019841,2]
[365501636,1749713440078,-910.57768253,0.00019841,2]
[365501637,1749713440092,-5.72231747,0.00019986,2]
[365501638,1749713440426,-277.1762455,0.00019986,2]
[365501639,1749713440438,-4181.99633426,0.00019986,2]
[365501640,1749713440447,-3048.15002703,0.00019986,2]
[365501641,1749713440526,-913.76378646,0.00019986,2]
[365501642,1749713440616,-764.745945,0.00019986,2]
[365501643,1749713440627,-1217.93004562,0.00019986,2]
[365501644,1749713440662,-9727.00897199,0.00019986,2]
[365501645,1749713440671,-12968.3075685,0.00019986,2]
[365501646,1749713440680,-10265.016361,0.00019986,2]
[365501647,1749713440690,-442.3277622,0.00019986,2]
[365501648,1749713440699,-385.598923,0.00019986,2]
[365501649,1749713440709,-328.8700839,0.00019986,2]
[365501650,1749713440719,-272.1412447,0.00019986,2]
[365501651,1749713440728,-215.4124056,0.00019986,2]
[365501652,1749713440738,-4447.8646311,0.00019986,2]
[365501653,1749713440748,-3877.4229388,0.00019986,2]
[365501654,1749713440758,-3306.9812464,0.00019986,2]
[365501655,1749713440768,-2736.5395541,0.00019986,2]
[365501656,1749713440779,-2166.0978618,0.00019986,2]
[365501657,1749713440789,-1413.4153273,0.00019986,2]
[365501658,1749713440799,-1232.1438413,0.00019986,2]
[365501659,1749713440809,-1050.8723553,0.00019986,2]
[365501660,1749713440819,-869.6008693,0.00019986,2]
[365501661,1749713440828,-688.3293832,0.00019986,2]
[365501662,1749713440837,-18623.7212403,0.00019986,2]
[365501663,1749713440847,-16235.2162064,0.00019986,2]
[365501664,1749713440856,-13846.7111725,0.00019986,2]
[365501665,1749713440867,-11458.2061386,0.00019986,2]
[365501666,1749713440876,-9069.7011047,0.00019986,2]
[365501667,1749713440886,-1217.4512782,0.00019986,2]
[365501668,1749713440895,-1063.7352743,0.00019986,2]
[365501669,1749713440905,-910.0192703,0.00019986,2]
[365501670,1749713440914,-756.3032664,0.00019986,2]
[365501671,1749713440924,-602.5872624,0.00019986,2]
[365501672,1749713440933,-5614.6500553,0.00019986,2]
[365501673,1749713440943,-4696.1048304,0.00019986,2]
[365501674,1749713440952,-3777.5596056,0.00019986,2]
[365501675,1749713440961,-2859.0143807,0.00019986,2]
[365501676,1749713440971,-1940.4691558,0.00019986,2]
[365501677,1749713440981,-67279.6658976,0.00019986,2]
[365501678,1749713440991,-56272.8506496,0.00019986,2]
[365501679,1749713441000,-45266.0354017,0.00019986,2]
[365501680,1749713441010,-34259.2201537,0.00019986,2]
[365501681,1749713441020,-23252.4049057,0.00019986,2]
[365501682,1749713441030,-500.92105034,0.00019988,2]
[365501683,1749713441039,-1000.0,0.00019988,2]
[365501684,1749713441049,-104175.74345093,0.0001999,2]
[365501685,1749713441059,-1593.74,0.00019995,2]
[365501686,1749713441068,-23781.4723986,0.00019996,2]